Workbook

Sheet Raporttinäkymä
C1: ="Kuntoilun raporttinäkymä - "&Name -> Kuntoilun raporttinäkymä - Steen, Heidi
B2: paino (kg) | J2: kehon koko (cm)
B12: arvioitu kehon rasvaton paino
B28: arvioitu kehon paino, rasva- ja painoindeksi

Sheet Tietojen tallentaminen
C1: kunnon seuranta
B2: 176 | H2: nimi | I2: Steen, Heidi
H3: pituus | I3: =INT(B2)&" cm " -> 176 cm
J4: 70
B6: päivämäärä | C6: paino (kg) | D6: rinta | E6: vyötärö | F6: lantio | G6: ranne | H6: kyynärvarsi | I6: kehon rasvaton paino | J6: kehon rasvan paino | K6: kehon rasvaprosentti | L6: kehon painoindeksi (BMI)
B7: 2012-06-09 | C7: 63.0 | D7: 81.3 | E7: 78.7 | F7: 101.6 | G7: 17.3 | H7: 29.2 | I7: =IF(Data[[#This Row],[paino (kg)]]="","",((Data[[#This Row],[paino (kg)]]*0.732/lbsConvert)+ 8.987)+(Data[[#This Row],[ranne]]/3.14/incConvert)-(Data[[#This Row],[vyötärö]]/incConvert*0.157)-(Data[[#This Row],[lantio]]/incConvert*0.249)+(Data[[#This Row],[kyynärvarsi]]/incConvert*0.434)) -> 103.80 | J7: =IFERROR(Data[[#This Row],[paino (kg)]]/lbsConvert-Data[[#This Row],[kehon rasvaton paino]],"") -> 36.20 | K7: =IFERROR((Data[[#This Row],[kehon rasvan paino]]*100)/Data[[#This Row],[paino (kg)]]*lbsConvert,"") -> 25.86 | L7: =(Data[[#This Row],[paino (kg)]]/lbsConvert/TotalInches/TotalInches)*703 -> 20.09
B8: 2012-06-10 | C8: 63.0 | D8: 81.3 | E8: 78.7 | F8: 100.3 | G8: 17.0 | H8: 29.2 | I8: =IF(Data[[#This Row],[paino (kg)]]="","",((Data[[#This Row],[paino (kg)]]*0.732/lbsConvert)+ 8.987)+(Data[[#This Row],[ranne]]/3.14/incConvert)-(Data[[#This Row],[vyötärö]]/incConvert*0.157)-(Data[[#This Row],[lantio]]/incConvert*0.249)+(Data[[#This Row],[kyynärvarsi]]/incConvert*0.434)) -> 103.89 | J8: =IFERROR(Data[[#This Row],[paino (kg)]]/lbsConvert-Data[[#This Row],[kehon rasvaton paino]],"") -> 36.11 | K8: =IFERROR((Data[[#This Row],[kehon rasvan paino]]*100)/Data[[#This Row],[paino (kg)]]*lbsConvert,"") -> 25.79 | L8: =(Data[[#This Row],[paino (kg)]]/lbsConvert/TotalInches/TotalInches)*703 -> 20.09
B9: 2012-06-11 | C9: 62.6 | D9: 81.3 | E9: 78.7 | F9: 100.3 | G9: 17.0 | H9: 29.2 | I9: =IF(Data[[#This Row],[paino (kg)]]="","",((Data[[#This Row],[paino (kg)]]*0.732/lbsConvert)+ 8.987)+(Data[[#This Row],[ranne]]/3.14/incConvert)-(Data[[#This Row],[vyötärö]]/incConvert*0.157)-(Data[[#This Row],[lantio]]/incConvert*0.249)+(Data[[#This Row],[kyynärvarsi]]/incConvert*0.434)) -> 103.16 | J9: =IFERROR(Data[[#This Row],[paino (kg)]]/lbsConvert-Data[[#This Row],[kehon rasvaton paino]],"") -> 35.84 | K9: =IFERROR((Data[[#This Row],[kehon rasvan paino]]*100)/Data[[#This Row],[paino (kg)]]*lbsConvert,"") -> 25.79 | L9: =(Data[[#This Row],[paino (kg)]]/lbsConvert/TotalInches/TotalInches)*703 -> 19.94
B10: 2012-06-12 | C10: 62.6 | D10: 81.3 | E10: 71.1 | F10: 99.1 | G10: 16.0 | H10: 27.9 | I10: =IF(Data[[#This Row],[paino (kg)]]="","",((Data[[#This Row],[paino (kg)]]*0.732/lbsConvert)+ 8.987)+(Data[[#This Row],[ranne]]/3.14/incConvert)-(Data[[#This Row],[vyötärö]]/incConvert*0.157)-(Data[[#This Row],[lantio]]/incConvert*0.249)+(Data[[#This Row],[kyynärvarsi]]/incConvert*0.434)) -> 103.41 | J10: =IFERROR(Data[[#This Row],[paino (kg)]]/lbsConvert-Data[[#This Row],[kehon rasvaton paino]],"") -> 35.59 | K10: =IFERROR((Data[[#This Row],[kehon rasvan paino]]*100)/Data[[#This Row],[paino (kg)]]*lbsConvert,"") -> 25.61 | L10: =(Data[[#This Row],[paino (kg)]]/lbsConvert/TotalInches/TotalInches)*703 -> 19.94
B11: 2012-06-13 | C11: 62.6 | D11: 81.3 | E11: 71.1 | F11: 99.1 | G11: 16.0 | H11: 27.9 | I11: =IF(Data[[#This Row],[paino (kg)]]="","",((Data[[#This Row],[paino (kg)]]*0.732/lbsConvert)+ 8.987)+(Data[[#This Row],[ranne]]/3.14/incConvert)-(Data[[#This Row],[vyötärö]]/incConvert*0.157)-(Data[[#This Row],[lantio]]/incConvert*0.249)+(Data[[#This Row],[kyynärvarsi]]/incConvert*0.434)) -> 103.41 | J11: =IFERROR(Data[[#This Row],[paino (kg)]]/lbsConvert-Data[[#This Row],[kehon rasvaton paino]],"") -> 35.59 | K11: =IFERROR((Data[[#This Row],[kehon rasvan paino]]*100)/Data[[#This Row],[paino (kg)]]*lbsConvert,"") -> 25.61 | L11: =(Data[[#This Row],[paino (kg)]]/lbsConvert/TotalInches/TotalInches)*703 -> 19.94
B12: 2012-06-14 | C12: 62.1 | D12: 81.3 | E12: 71.1 | F12: 99.1 | G12: 16.0 | H12: 27.9 | I12: =IF(Data[[#This Row],[paino (kg)]]="","",((Data[[#This Row],[paino (kg)]]*0.732/lbsConvert)+ 8.987)+(Data[[#This Row],[ranne]]/3.14/incConvert)-(Data[[#This Row],[vyötärö]]/incConvert*0.157)-(Data[[#This Row],[lantio]]/incConvert*0.249)+(Data[[#This Row],[kyynärvarsi]]/incConvert*0.434)) -> 102.68 | J12: =IFERROR(Data[[#This Row],[paino (kg)]]/lbsConvert-Data[[#This Row],[kehon rasvaton paino]],"") -> 35.32 | K12: =IFERROR((Data[[#This Row],[kehon rasvan paino]]*100)/Data[[#This Row],[paino (kg)]]*lbsConvert,"") -> 25.60 | L12: =(Data[[#This Row],[paino (kg)]]/lbsConvert/TotalInches/TotalInches)*703 -> 19.80
B13: 2012-06-15 | C13: 61.7 | D13: 81.3 | E13: 71.1 | F13: 96.5 | G13: 16.0 | H13: 27.9 | I13: =IF(Data[[#This Row],[paino (kg)]]="","",((Data[[#This Row],[paino (kg)]]*0.732/lbsConvert)+ 8.987)+(Data[[#This Row],[ranne]]/3.14/incConvert)-(Data[[#This Row],[vyötärö]]/incConvert*0.157)-(Data[[#This Row],[lantio]]/incConvert*0.249)+(Data[[#This Row],[kyynärvarsi]]/incConvert*0.434)) -> 102.19 | J13: =IFERROR(Data[[#This Row],[paino (kg)]]/lbsConvert-Data[[#This Row],[kehon rasvaton paino]],"") -> 34.81 | K13: =IFERROR((Data[[#This Row],[kehon rasvan paino]]*100)/Data[[#This Row],[paino (kg)]]*lbsConvert,"") -> 25.41 | L13: =(Data[[#This Row],[paino (kg)]]/lbsConvert/TotalInches/TotalInches)*703 -> 19.66
B14: 2012-06-16 | C14: 61.2 | D14: 80.0 | E14: 69.9 | F14: 96.5 | G14: 16.0 | H14: 27.9 | I14: =IF(Data[[#This Row],[paino (kg)]]="","",((Data[[#This Row],[paino (kg)]]*0.732/lbsConvert)+ 8.987)+(Data[[#This Row],[ranne]]/3.14/incConvert)-(Data[[#This Row],[vyötärö]]/incConvert*0.157)-(Data[[#This Row],[lantio]]/incConvert*0.249)+(Data[[#This Row],[kyynärvarsi]]/incConvert*0.434)) -> 101.54 | J14: =IFERROR(Data[[#This Row],[paino (kg)]]/lbsConvert-Data[[#This Row],[kehon rasvaton paino]],"") -> 34.46 | K14: =IFERROR((Data[[#This Row],[kehon rasvan paino]]*100)/Data[[#This Row],[paino (kg)]]*lbsConvert,"") -> 25.34 | L14: =(Data[[#This Row],[paino (kg)]]/lbsConvert/TotalInches/TotalInches)*703 -> 19.51
B15: 2012-06-17 | C15: 60.8 | D15: 80.0 | E15: 69.2 | F15: 95.9 | G15: 16.0 | H15: 26.7 | I15: =IF(Data[[#This Row],[paino (kg)]]="","",((Data[[#This Row],[paino (kg)]]*0.732/lbsConvert)+ 8.987)+(Data[[#This Row],[ranne]]/3.14/incConvert)-(Data[[#This Row],[vyötärö]]/incConvert*0.157)-(Data[[#This Row],[lantio]]/incConvert*0.249)+(Data[[#This Row],[kyynärvarsi]]/incConvert*0.434)) -> 100.69 | J15: =IFERROR(Data[[#This Row],[paino (kg)]]/lbsConvert-Data[[#This Row],[kehon rasvaton paino]],"") -> 34.31 | K15: =IFERROR((Data[[#This Row],[kehon rasvan paino]]*100)/Data[[#This Row],[paino (kg)]]*lbsConvert,"") -> 25.41 | L15: =(Data[[#This Row],[paino (kg)]]/lbsConvert/TotalInches/TotalInches)*703 -> 19.37
B16: 2012-06-18 | C16: 60.8 | D16: 80.0 | E16: 68.6 | F16: 94.0 | G16: 16.0 | H16: 26.7 | I16: =IF(Data[[#This Row],[paino (kg)]]="","",((Data[[#This Row],[paino (kg)]]*0.732/lbsConvert)+ 8.987)+(Data[[#This Row],[ranne]]/3.14/incConvert)-(Data[[#This Row],[vyötärö]]/incConvert*0.157)-(Data[[#This Row],[lantio]]/incConvert*0.249)+(Data[[#This Row],[kyynärvarsi]]/incConvert*0.434)) -> 100.92 | J16: =IFERROR(Data[[#This Row],[paino (kg)]]/lbsConvert-Data[[#This Row],[kehon rasvaton paino]],"") -> 34.08 | K16: =IFERROR((Data[[#This Row],[kehon rasvan paino]]*100)/Data[[#This Row],[paino (kg)]]*lbsConvert,"") -> 25.25 | L16: =(Data[[#This Row],[paino (kg)]]/lbsConvert/TotalInches/TotalInches)*703 -> 19.37
B17: 2012-06-19 | C17: 60.3 | D17: 78.7 | E17: 68.6 | F17: 94.0 | G17: 16.0 | H17: 25.4 | I17: =IF(Data[[#This Row],[paino (kg)]]="","",((Data[[#This Row],[paino (kg)]]*0.732/lbsConvert)+ 8.987)+(Data[[#This Row],[ranne]]/3.14/incConvert)-(Data[[#This Row],[vyötärö]]/incConvert*0.157)-(Data[[#This Row],[lantio]]/incConvert*0.249)+(Data[[#This Row],[kyynärvarsi]]/incConvert*0.434)) -> 99.97 | J17: =IFERROR(Data[[#This Row],[paino (kg)]]/lbsConvert-Data[[#This Row],[kehon rasvaton paino]],"") -> 34.03 | K17: =IFERROR((Data[[#This Row],[kehon rasvan paino]]*100)/Data[[#This Row],[paino (kg)]]*lbsConvert,"") -> 25.40 | L17: =(Data[[#This Row],[paino (kg)]]/lbsConvert/TotalInches/TotalInches)*703 -> 19.22
B18: 2012-06-20 | C18: 59.9 | D18: 78.7 | E18: 68.6 | F18: 94.0 | G18: 15.7 | H18: 25.4 | I18: =IF(Data[[#This Row],[paino (kg)]]="","",((Data[[#This Row],[paino (kg)]]*0.732/lbsConvert)+ 8.987)+(Data[[#This Row],[ranne]]/3.14/incConvert)-(Data[[#This Row],[vyötärö]]/incConvert*0.157)-(Data[[#This Row],[lantio]]/incConvert*0.249)+(Data[[#This Row],[kyynärvarsi]]/incConvert*0.434)) -> 99.21 | J18: =IFERROR(Data[[#This Row],[paino (kg)]]/lbsConvert-Data[[#This Row],[kehon rasvaton paino]],"") -> 33.79 | K18: =IFERROR((Data[[#This Row],[kehon rasvan paino]]*100)/Data[[#This Row],[paino (kg)]]*lbsConvert,"") -> 25.41 | L18: =(Data[[#This Row],[paino (kg)]]/lbsConvert/TotalInches/TotalInches)*703 -> 19.08
B19: 2012-06-21 | C19: 59.4 | D19: 78.7 | E19: 68.6 | F19: 91.4 | G19: 15.7 | H19: 25.4 | I19: =IF(Data[[#This Row],[paino (kg)]]="","",((Data[[#This Row],[paino (kg)]]*0.732/lbsConvert)+ 8.987)+(Data[[#This Row],[ranne]]/3.14/incConvert)-(Data[[#This Row],[vyötärö]]/incConvert*0.157)-(Data[[#This Row],[lantio]]/incConvert*0.249)+(Data[[#This Row],[kyynärvarsi]]/incConvert*0.434)) -> 98.72 | J19: =IFERROR(Data[[#This Row],[paino (kg)]]/lbsConvert-Data[[#This Row],[kehon rasvaton paino]],"") -> 33.28 | K19: =IFERROR((Data[[#This Row],[kehon rasvan paino]]*100)/Data[[#This Row],[paino (kg)]]*lbsConvert,"") -> 25.21 | L19: =(Data[[#This Row],[paino (kg)]]/lbsConvert/TotalInches/TotalInches)*703 -> 18.94
B20: 2012-06-22 | C20: 58.5 | D20: 78.7 | E20: 66.0 | F20: 91.4 | G20: 15.7 | H20: 25.4 | I20: =IF(Data[[#This Row],[paino (kg)]]="","",((Data[[#This Row],[paino (kg)]]*0.732/lbsConvert)+ 8.987)+(Data[[#This Row],[ranne]]/3.14/incConvert)-(Data[[#This Row],[vyötärö]]/incConvert*0.157)-(Data[[#This Row],[lantio]]/incConvert*0.249)+(Data[[#This Row],[kyynärvarsi]]/incConvert*0.434)) -> 97.42 | J20: =IFERROR(Data[[#This Row],[paino (kg)]]/lbsConvert-Data[[#This Row],[kehon rasvaton paino]],"") -> 32.58 | K20: =IFERROR((Data[[#This Row],[kehon rasvan paino]]*100)/Data[[#This Row],[paino (kg)]]*lbsConvert,"") -> 25.06 | L20: =(Data[[#This Row],[paino (kg)]]/lbsConvert/TotalInches/TotalInches)*703 -> 18.65
B21: 2012-06-23 | C21: 58.5 | D21: 78.7 | E21: 66.0 | F21: 91.4 | G21: 15.7 | H21: 25.4 | I21: =IF(Data[[#This Row],[paino (kg)]]="","",((Data[[#This Row],[paino (kg)]]*0.732/lbsConvert)+ 8.987)+(Data[[#This Row],[ranne]]/3.14/incConvert)-(Data[[#This Row],[vyötärö]]/incConvert*0.157)-(Data[[#This Row],[lantio]]/incConvert*0.249)+(Data[[#This Row],[kyynärvarsi]]/incConvert*0.434)) -> 97.42 | J21: =IFERROR(Data[[#This Row],[paino (kg)]]/lbsConvert-Data[[#This Row],[kehon rasvaton paino]],"") -> 32.58 | K21: =IFERROR((Data[[#This Row],[kehon rasvan paino]]*100)/Data[[#This Row],[paino (kg)]]*lbsConvert,"") -> 25.06 | L21: =(Data[[#This Row],[paino (kg)]]/lbsConvert/TotalInches/TotalInches)*703 -> 18.65
B22: 2012-06-24 | C22: 58.1 | D22: 78.7 | E22: 66.0 | F22: 88.9 | G22: 15.2 | H22: 24.1 | I22: =IF(Data[[#This Row],[paino (kg)]]="","",((Data[[#This Row],[paino (kg)]]*0.732/lbsConvert)+ 8.987)+(Data[[#This Row],[ranne]]/3.14/incConvert)-(Data[[#This Row],[vyötärö]]/incConvert*0.157)-(Data[[#This Row],[lantio]]/incConvert*0.249)+(Data[[#This Row],[kyynärvarsi]]/incConvert*0.434)) -> 96.65 | J22: =IFERROR(Data[[#This Row],[paino (kg)]]/lbsConvert-Data[[#This Row],[kehon rasvaton paino]],"") -> 32.35 | K22: =IFERROR((Data[[#This Row],[kehon rasvan paino]]*100)/Data[[#This Row],[paino (kg)]]*lbsConvert,"") -> 25.08 | L22: =(Data[[#This Row],[paino (kg)]]/lbsConvert/TotalInches/TotalInches)*703 -> 18.51
B23: 2012-06-25 | C23: 58.1 | D23: 78.7 | E23: 66.0 | F23: 88.9 | G23: 15.2 | H23: 24.1 | I23: =IF(Data[[#This Row],[paino (kg)]]="","",((Data[[#This Row],[paino (kg)]]*0.732/lbsConvert)+ 8.987)+(Data[[#This Row],[ranne]]/3.14/incConvert)-(Data[[#This Row],[vyötärö]]/incConvert*0.157)-(Data[[#This Row],[lantio]]/incConvert*0.249)+(Data[[#This Row],[kyynärvarsi]]/incConvert*0.434)) -> 96.65 | J23: =IFERROR(Data[[#This Row],[paino (kg)]]/lbsConvert-Data[[#This Row],[kehon rasvaton paino]],"") -> 32.35 | K23: =IFERROR((Data[[#This Row],[kehon rasvan paino]]*100)/Data[[#This Row],[paino (kg)]]*lbsConvert,"") -> 25.08 | L23: =(Data[[#This Row],[paino (kg)]]/lbsConvert/TotalInches/TotalInches)*703 -> 18.51
B24: 2012-06-26 | C24: 58.1 | D24: 78.7 | E24: 66.0 | F24: 88.9 | G24: 15.2 | H24: 24.1 | I24: =IF(Data[[#This Row],[paino (kg)]]="","",((Data[[#This Row],[paino (kg)]]*0.732/lbsConvert)+ 8.987)+(Data[[#This Row],[ranne]]/3.14/incConvert)-(Data[[#This Row],[vyötärö]]/incConvert*0.157)-(Data[[#This Row],[lantio]]/incConvert*0.249)+(Data[[#This Row],[kyynärvarsi]]/incConvert*0.434)) -> 96.65 | J24: =IFERROR(Data[[#This Row],[paino (kg)]]/lbsConvert-Data[[#This Row],[kehon rasvaton paino]],"") -> 32.35 | K24: =IFERROR((Data[[#This Row],[kehon rasvan paino]]*100)/Data[[#This Row],[paino (kg)]]*lbsConvert,"") -> 25.08 | L24: =(Data[[#This Row],[paino (kg)]]/lbsConvert/TotalInches/TotalInches)*703 -> 18.51
B25: 2012-06-27 | C25: 58.1 | D25: 78.7 | E25: 66.0 | F25: 88.9 | G25: 15.2 | H25: 24.1 | I25: =IF(Data[[#This Row],[paino (kg)]]="","",((Data[[#This Row],[paino (kg)]]*0.732/lbsConvert)+ 8.987)+(Data[[#This Row],[ranne]]/3.14/incConvert)-(Data[[#This Row],[vyötärö]]/incConvert*0.157)-(Data[[#This Row],[lantio]]/incConvert*0.249)+(Data[[#This Row],[kyynärvarsi]]/incConvert*0.434)) -> 96.65 | J25: =IFERROR(Data[[#This Row],[paino (kg)]]/lbsConvert-Data[[#This Row],[kehon rasvaton paino]],"") -> 32.35 | K25: =IFERROR((Data[[#This Row],[kehon rasvan paino]]*100)/Data[[#This Row],[paino (kg)]]*lbsConvert,"") -> 25.08 | L25: =(Data[[#This Row],[paino (kg)]]/lbsConvert/TotalInches/TotalInches)*703 -> 18.51
B26: 2012-06-28 | C26: 58.1 | D26: 78.7 | E26: 66.0 | F26: 88.9 | G26: 15.2 | H26: 24.1 | I26: =IF(Data[[#This Row],[paino (kg)]]="","",((Data[[#This Row],[paino (kg)]]*0.732/lbsConvert)+ 8.987)+(Data[[#This Row],[ranne]]/3.14/incConvert)-(Data[[#This Row],[vyötärö]]/incConvert*0.157)-(Data[[#This Row],[lantio]]/incConvert*0.249)+(Data[[#This Row],[kyynärvarsi]]/incConvert*0.434)) -> 96.65 | J26: =IFERROR(Data[[#This Row],[paino (kg)]]/lbsConvert-Data[[#This Row],[kehon rasvaton paino]],"") -> 32.35 | K26: =IFERROR((Data[[#This Row],[kehon rasvan paino]]*100)/Data[[#This Row],[paino (kg)]]*lbsConvert,"") -> 25.08 | L26: =(Data[[#This Row],[paino (kg)]]/lbsConvert/TotalInches/TotalInches)*703 -> 18.51
B27: 2012-06-29 | C27: 58.1 | D27: 78.7 | E27: 66.0 | F27: 88.9 | G27: 15.2 | H27: 24.1 | I27: =IF(Data[[#This Row],[paino (kg)]]="","",((Data[[#This Row],[paino (kg)]]*0.732/lbsConvert)+ 8.987)+(Data[[#This Row],[ranne]]/3.14/incConvert)-(Data[[#This Row],[vyötärö]]/incConvert*0.157)-(Data[[#This Row],[lantio]]/incConvert*0.249)+(Data[[#This Row],[kyynärvarsi]]/incConvert*0.434)) -> 96.65 | J27: =IFERROR(Data[[#This Row],[paino (kg)]]/lbsConvert-Data[[#This Row],[kehon rasvaton paino]],"") -> 32.35 | K27: =IFERROR((Data[[#This Row],[kehon rasvan paino]]*100)/Data[[#This Row],[paino (kg)]]*lbsConvert,"") -> 25.08 | L27: =(Data[[#This Row],[paino (kg)]]/lbsConvert/TotalInches/TotalInches)*703 -> 18.51
